fUSD/lending_fUSD_20250108
["ID","MTS","AMOUNT","RATE_DAILY","PERIOD"]
[348093894,1736308232851,-183.87,9.88e-05,2]
[348093895,1736308232860,-250.0,9.895e-05,2]
[348093896,1736308232870,-150.0,9.997e-05,2]
[348093897,1736308232879,-500.0,9.998e-05,2]
[348093898,1736308232889,-515.06,9.998e-05,2]
[348093899,1736308232899,-921.56,9.998e-05,2]
[348093900,1736308232909,-2062.69,9.998e-05,2]
[348093901,1736308232919,-500.0,9.998e-05,2]
[348093902,1736308232929,-500.0,9.998e-05,2]
[348093903,1736308232939,-792.0935964,9.998e-05,2]
[348093904,1736308232951,-419.5164036,9.998e-05,2]
[348093905,1736308232961,-155.3219348,9.998e-05,2]
[348093906,1736308232973,-344.6780652,9.998e-05,2]
[348093907,1736308232983,-534.71,9.998e-05,2]
[348093908,1736308232993,-500.0,9.998e-05,2]
[348093909,1736308233003,-643.0,9.998e-05,2]
[348093910,1736308233014,-500.0,9.998e-05,2]
[348093911,1736308233026,-500.0,9.998e-05,2]
[348093912,1736308233036,-1014.65,9.998e-05,2]
[348093913,1736308233045,-808.64,9.998e-05,2]
[348093914,1736308233056,-500.0,9.999e-05,2]
[348093916,1736308233066,-418.39321894,9.999e-05,2]
[348093918,1736308233076,-500.0,9.999e-05,2]
[348093920,1736308233086,-500.0,9.999e-05,2]
[348093923,1736308233096,-500.0,9.999e-05,2]
[348093927,1736308233107,-500.0,9.999e-05,2]
[348093930,1736308233116,-500.0,9.999e-05,2]
[348093933,1736308233126,-500.0,9.999e-05,2]
[348093936,1736308233136,-500.0,9.999e-05,2]
[348093939,1736308233146,-500.0,9.999e-05,2]
[348093942,1736308233155,-500.0,9.999e-05,2]
[348093945,1736308233164,-500.0,9.999e-05,2]
[348093947,1736308233173,-500.0,9.999e-05,2]
[348093949,1736308233183,-500.0,9.999e-05,2]
[348093951,1736308233192,-500.0,9.999e-05,2]
[348093953,1736308233202,-500.0,9.999e-05,2]
[348093954,1736308233211,-500.0,9.999e-05,2]
[348093956,1736308233221,-500.0,9.999e-05,2]
[348093958,1736308233230,-500.0,9.999e-05,2]
[348093960,1736308233240,-500.0,9.999e-05,2]
[348093962,1736308233250,-500.0,9.999e-05,2]
[348093964,1736308233259,-500.0,9.999e-05,2]
[348093966,1736308233269,-1464.59,9.999e-05,2]
[348093968,1736308233284,-500.0,9.999e-05,2]
[348093976,1736308233517,-500.0,9.999e-05,2]
[348093977,1736308233529,-500.73581282,9.999e-05,2]
[348093978,1736308233539,-500.0,9.999e-05,2]
[348093979,1736308233549,-500.0,9.999e-05,2]
[348093980,1736308233559,-215.73610688,9.999e-05,2]
[348093981,1736308233568,-500.0,9.999e-05,2]
[348093982,1736308233578,-500.0,9.999e-05,2]
[348093983,1736308233587,-170.24,9.999e-05,2]
[348093984,1736308233596,-500.0,9.999e-05,2]
[348093985,1736308233606,-500.0,9.999e-05,2]
[348093986,1736308233615,-500.0,9.999e-05,2]
[348093987,1736308233625,-307.43,9.999e-05,2]
[348093988,1736308233634,-500.0,9.999e-05,2]
[348093989,1736308233644,-500.0,9.999e-05,2]
[348093990,1736308233654,-500.0,9.999e-05,2]
[348093991,1736308233663,-500.0,9.999e-05,2]
[348093992,1736308233672,-501.50769893,9.999e-05,2]
[348093993,1736308233682,-500.64472277,9.999e-05,2]
[348093994,1736308233691,-508.43838309,9.999e-05,2]
[348093995,1736308233701,-500.0,9.999e-05,2]
[348093996,1736308233711,-503.43745018,9.999e-05,2]
[348093997,1736308233720,-500.0,9.999e-05,2]
[348093998,1736308233729,-500.0,9.999e-05,2]
[348093999,1736308233739,-506.20269691,9.999e-05,2]
[348094000,1736308233748,-500.0,9.999e-05,2]
[348094001,1736308233758,-500.0,9.999e-05,2]
[348094002,1736308233767,-155.98,9.999e-05,2]
[348094003,1736308233778,-500.0,9.999e-05,2]
[348094004,1736308233788,-500.0,9.999e-05,2]
[348094005,1736308233798,-500.0,9.999e-05,2]
[348094006,1736308233807,-500.0,9.999e-05,2]
[348094007,1736308233817,-502.99027489,9.999e-05,2]
[348094008,1736308233826,-500.0,9.999e-05,2]
[348094009,1736308233835,-506.08151466,9.999e-05,2]
[348094010,1736308233845,-500.0,9.999e-05,2]
[348094011,1736308233856,-504.49684709,9.999e-05,2]
[348094012,1736308233866,-500.0,9.999e-05,2]
[348094013,1736308233875,-500.0,9.999e-05,2]
[348094014,1736308233885,-500.0,9.999e-05,2]
[348094015,1736308233895,-505.05647796,9.999e-05,2]
[348094016,1736308233905,-500.0,9.999e-05,2]
[348094017,1736308233914,-500.0,9.999e-05,2]
[348094018,1736308233923,-502.97041026,9.999e-05,2]
[348094019,1736308233933,-500.0,9.999e-05,2]
[348094020,1736308233943,-503.74050456,9.999e-05,2]
[348094021,1736308233953,-500.0,9.999e-05,2]
[348094022,1736308233963,-503.71897851,9.999e-05,2]
[348094023,1736308233972,-365.09458929,9.999e-05,2]
[348094024,1736308233983,-500.0,9.999e-05,2]
[348094025,1736308233993,-500.0,9.999e-05,2]
[348094026,1736308234003,-500.0,9.999e-05,2]
[348094027,1736308234013,-500.0,9.999e-05,2]
[348094028,1736308234023,-500.0,9.999e-05,2]
[348094029,1736308234033,-500.0,9.999e-05,2]
[348094030,1736308234043,-500.0,9.999e-05,2]
[348094031,1736308234053,-500.0,9.999e-05,2]
[348094032,1736308234063,-500.0,9.999e-05,2]
[348094033,1736308234073,-500.0,9.999e-05,2]
[348094034,1736308234083,-500.0,9.999e-05,2]
[348094035,1736308234092,-576.02,9.999e-05,2]
[348094036,1736308234102,-500.0,9.999e-05,2]
[348094037,1736308234111,-347.28580512,9.999e-05,2]
[348094038,1736308234121,-521.02008178,9.999e-05,2]
[348094039,1736308234130,-500.0,9.999e-05,2]
[348094040,1736308234140,-500.0,9.999e-05,2]
[348094041,1736308234149,-500.0,9.999e-05,2]
[348094042,1736308234159,-505.71108186,9.999e-05,7]
[348094043,1736308234169,-500.0,9.999e-05,2]
[348094044,1736308234179,-500.0,9.999e-05,2]
[348094045,1736308234189,-500.0,9.999e-05,2]
[348094046,1736308234198,-500.0,9.999e-05,2]
[348094047,1736308234208,-500.0,9.999e-05,2]
[348094048,1736308234218,-500.0,9.999e-05,2]
[348094049,1736308234228,-500.0,9.999e-05,2]
[348094050,1736308234238,-500.0,9.999e-05,2]
[348094051,1736308234248,-500.0,9.999e-05,2]
[348094052,1736308234257,-500.0,9.999e-05,2]
[348094053,1736308234271,-500.0,9.999e-05,2]
[348094054,1736308234281,-500.0,9.999e-05,2]
[348094055,1736308234290,-500.0,9.999e-05,2]
[348094056,1736308234299,-500.0,9.999e-05,2]
[348094057,1736308234310,-515.31614273,9.999e-05,2]
[348094058,1736308234320,-500.0,9.999e-05,2]
[348094059,1736308234329,-500.0,9.999e-05,2]
[348094060,1736308234339,-500.0,9.999e-05,2]
[348094061,1736308234349,-501.62467605,9.999e-05,2]
[348094062,1736308234359,-500.0,9.999e-05,2]
[348094063,1736308234368,-500.0,9.999e-05,2]
[348094064,1736308234378,-564.3414876,9.999e-05,2]
[348094065,1736308234388,-413.70090823,9.999e-05,2]
[348094066,1736308234398,-500.0,9.999e-05,2]
[348094067,1736308234408,-500.0,9.999e-05,2]
[348094068,1736308234417,-500.0,9.999e-05,2]
[348094069,1736308234427,-500.0,9.999e-05,2]
[348094070,1736308234436,-500.0,9.999e-05,2]
[348094071,1736308234446,-500.0,9.999e-05,2]
[348094072,1736308234455,-500.0,9.999e-05,2]
[348094073,1736308234464,-500.0,9.999e-05,2]
[348094074,1736308234474,-500.0,9.999e-05,2]
[348094075,1736308234483,-500.0,9.999e-05,2]
[348094076,1736308234493,-500.0,9.999e-05,2]
[348094077,1736308234502,-500.0,9.999e-05,2]
[348094078,1736308234511,-500.0,9.999e-05,2]
[348094079,1736308234521,-505.08595308,9.999e-05,2]
[348094080,1736308234530,-500.0,9.999e-05,2]
[348094081,1736308234539,-501.59203273,9.999e-05,2]
[348094082,1736308234550,-500.0,9.999e-05,2]
[348094083,1736308234559,-505.21270351,9.999e-05,2]
[348094084,1736308234568,-500.0,9.999e-05,2]
[348094085,1736308234578,-500.0,9.999e-05,2]
[348094086,1736308234587,-500.0,9.999e-05,2]
[348094087,1736308234597,-500.0,9.999e-05,2]
[348094088,1736308234606,-500.0,9.999e-05,2]
[348094089,1736308234615,-500.0,9.999e-05,2]
[348094090,1736308234624,-500.0,9.999e-05,2]
[348094091,1736308234634,-514.27486331,9.999e-05,2]
[348094092,1736308234644,-500.0,9.999e-05,2]
[348094093,1736308234653,-500.0,9.999e-05,2]
[348094094,1736308234663,-503.42329474,9.999e-05,2]
[348094095,1736308234672,-500.0,9.999e-05,2]
[348094096,1736308234681,-500.0,9.999e-05,2]
[348094097,1736308234692,-500.0,9.999e-05,2]
[348094098,1736308234701,-500.0,9.999e-05,2]
[348094099,1736308234711,-500.0,9.999e-05,2]
[348094100,1736308234720,-503.1543239,9.999e-05,2]
[348094101,1736308234730,-500.0,9.999e-05,2]
[348094102,1736308234739,-505.44964826,9.999e-05,2]
[348094103,1736308234748,-500.0,9.999e-05,2]
[348094104,1736308234758,-504.3945345,9.999e-05,2]
[348094105,1736308234767,-500.0,9.999e-05,2]
[348094106,1736308234778,-509.80459468,9.999e-05,2]
[348094107,1736308234787,-500.0,9.999e-05,2]
[348094108,1736308234797,-500.0,9.999e-05,2]
[348094109,1736308234806,-500.0,9.999e-05,2]
[348094110,1736308234817,-500.0,9.999e-05,2]
[348094111,1736308234827,-500.0,9.999e-05,2]
[348094112,1736308234838,-500.0,9.999e-05,2]
[348094113,1736308234848,-504.93514623,9.999e-05,2]
[348094114,1736308234858,-500.0,9.999e-05,2]
[348094115,1736308234869,-503.70636055,9.999e-05,2]
[348094116,1736308234879,-504.51345645,9.999e-05,2]
[348094117,1736308234888,-500.0,9.999e-05,2]
[348094118,1736308234899,-500.0,9.999e-05,2]
[348094119,1736308234910,-500.0,9.999e-05,2]
[348094120,1736308234919,-500.0,9.999e-05,2]
[348094121,1736308234929,-500.0,9.999e-05,2]
[348094122,1736308234939,-500.0,9.999e-05,2]
[348094123,1736308234948,-500.0,9.999e-05,2]
[348094124,1736308234958,-500.0,9.999e-05,2]
[348094125,1736308234968,-500.0,9.999e-05,2]
[348094126,1736308234977,-500.0,9.999e-05,2]
[348094127,1736308234988,-500.0,9.999e-05,2]
[348094128,1736308234999,-500.0,9.999e-05,2]
[348094129,1736308235009,-500.0,9.999e-05,2]
[348094130,1736308235019,-500.0,9.999e-05,2]
[348094131,1736308235029,-500.0,9.999e-05,2]
[348094132,1736308235039,-500.0,9.999e-05,2]
[348094133,1736308235049,-500.0,9.999e-05,2]
[348094134,1736308235058,-500.0,9.999e-05,2]
[348094135,1736308235068,-444.73928519,9.999e-05,2]
[348094136,1736308235077,-500.0,9.999e-05,2]
[348094137,1736308235087,-500.0,9.999e-05,2]
[348094138,1736308235097,-500.0,9.999e-05,2]
[348094139,1736308235107,-500.0,9.999e-05,2]
[348094140,1736308235116,-500.0,9.999e-05,2]
[348094141,1736308235127,-500.0,9.999e-05,2]
[348094142,1736308235136,-500.0,9.999e-05,2]
[348094143,1736308235146,-500.0,9.999e-05,2]
[348094144,1736308235156,-500.0,9.999e-05,2]
[348094145,1736308235165,-500.0,9.999e-05,2]
[348094146,1736308235175,-500.0,9.999e-05,2]
[348094147,1736308235184,-500.0,9.999e-05,2]
[348094148,1736308235193,-438.94858891,9.999e-05,2]
[348094149,1736308235202,-500.0,9.999e-05,2]
[348094150,1736308235212,-414.81249581,9.999e-05,2]
[348094151,1736308235222,-500.0,9.999e-05,2]
[348094152,1736308235232,-200.69271058,9.999e-05,2]
[348094153,1736308235241,-500.0,9.999e-05,2]
[348094154,1736308235251,-873.00406343,0.0001,7]
[348094155,1736308235260,-172.17,0.0001,2]
[348094156,1736308235273,-1020.94148532,0.0001,2]
[348094157,1736308235283,-1020.94148517,0.00010003,2]
[348094158,1736308235293,-1020.94148517,0.00010107,2]
[348094159,1736308235302,-310.22,0.00010137,2]
[348094160,1736308235313,-5000.0,0.00010172,2]
[348094161,1736308235322,-1020.94148517,0.0001021,2]
[348094162,1736308235332,-500.0,0.00010272,2]
[348094163,1736308235343,-515.06,0.00010272,2]
[348094164,1736308235354,-921.56,0.00010272,2]
[348094165,1736308235363,-2062.69,0.00010272,2]
[348094166,1736308235373,-500.0,0.00010272,2]
[348094167,1736308235383,-500.0,0.00010272,2]
[348094168,1736308235392,-836.4,0.00010272,2]
[348094169,1736308235402,-682.38,0.00010272,2]
[348094170,1736308235412,-500.0,0.00010272,2]
[348094171,1736308235421,-1211.61,0.00010272,2]
[348094172,1736308235431,-500.0,0.00010272,2]
[348094173,1736308235440,-500.0,0.00010272,2]
[348094174,1736308235450,-1017.51,0.00010272,2]
[348094175,1736308235460,-534.71,0.00010272,2]
[348094176,1736308235469,-500.0,0.00010272,2]
[348094177,1736308235478,-1211.08,0.00010272,2]
[348094178,1736308235487,-500.0,0.00010272,2]
[348094179,1736308235497,-283.36873387,0.00010272,2]
[348094180,1736308235507,-500.0,0.00010272,2]
[348094181,1736308235516,-1064.2,0.00010272,2]
[348094182,1736308235527,-500.0,0.00010272,2]
[348094183,1736308235536,-500.0,0.00010272,2]
[348094184,1736308235545,-643.0,0.00010272,2]
[348094185,1736308235554,-500.0,0.00010272,2]
[348094186,1736308235563,-500.0,0.00010272,2]
[348094187,1736308235573,-505.57479473,0.00010272,2]
[348094188,1736308235583,-504.51186731,0.00010272,2]
[348094189,1736308235593,-503.23856205,0.00010272,2]
[348094190,1736308235603,-500.0,0.00010272,2]
[348094191,1736308235612,-500.0,0.00010272,2]
[348094192,1736308235622,-500.0,0.00010272,2]
[348094193,1736308235631,-500.91879504,0.00010272,2]
[348094194,1736308235640,-500.0,0.00010272,2]
[348094195,1736308235649,-922.31,0.00010272,2]
[348094196,1736308235659,-500.0,0.00010272,2]
[348094197,1736308235668,-500.0,0.00010272,2]
[348094198,1736308235677,-500.28132037,0.00010272,2]
[348094199,1736308235687,-500.0,0.00010272,2]
[348094200,1736308235698,-500.0,0.00010272,2]
[348094201,1736308235707,-500.0,0.00010272,2]
[348094202,1736308235717,-500.0,0.00010272,2]
[348094203,1736308235727,-500.0,0.00010272,2]
[348094204,1736308235736,-500.0,0.00010272,2]
[348094205,1736308235747,-500.0,0.00010272,2]
[348094206,1736308235757,-897.47,0.00010272,2]
[348094207,1736308235766,-500.0,0.00010272,2]
[348094208,1736308235777,-500.0,0.00010272,2]
[348094209,1736308235786,-500.0,0.00010272,2]
[348094210,1736308235795,-500.0,0.00010272,2]
[348094211,1736308235805,-500.0,0.00010272,2]
[348094212,1736308235815,-500.0,0.00010272,2]
[348094213,1736308235824,-1014.65,0.00010272,2]
[348094214,1736308235833,-500.0,0.00010272,2]
[348094215,1736308235843,-500.0,0.00010272,2]
[348094216,1736308235852,-500.0,0.00010272,2]
[348094217,1736308235862,-808.64,0.00010272,2]
[348094218,1736308235872,-500.0,0.00010272,2]
[348094219,1736308235882,-500.0,0.00010272,2]
[348094220,1736308235891,-500.0,0.00010272,2]
[348094221,1736308235901,-500.0,0.00010272,2]
[348094222,1736308235911,-500.0,0.00010272,2]
[348094223,1736308235920,-500.0,0.00010272,2]
[348094224,1736308235929,-500.0,0.00010272,2]
[348094225,1736308235939,-511.86,0.00010272,2]
[348094226,1736308235949,-500.0,0.00010272,2]
[348094227,1736308235958,-500.0,0.00010272,2]
[348094228,1736308235968,-500.0,0.00010272,2]
[348094229,1736308235977,-500.0,0.00010272,2]
[348094230,1736308235987,-500.0,0.00010272,2]
[348094231,1736308235997,-310.69,0.00010272,2]
[348094232,1736308236008,-500.0,0.00010272,2]
[348094233,1736308236018,-503.86197147,0.00010272,2]
[348094234,1736308236029,-207.02,0.00010272,2]
[348094235,1736308236038,-500.0,0.00010272,2]
[348094236,1736308236048,-378.783815,0.00010272,2]
[348094237,1736308236057,-323.6066652,0.00010272,2]
[348094238,1736308236067,-500.0,0.00010272,2]
[348094239,1736308236077,-500.0,0.00010272,2]
[348094240,1736308236087,-500.0,0.00010272,2]
[348094241,1736308236096,-500.0,0.00010272,2]
[348094242,1736308236106,-500.0,0.00010272,2]
[348094243,1736308236115,-500.0,0.00010272,2]
[348094244,1736308236125,-500.0,0.00010272,2]
[348094245,1736308236135,-500.0,0.00010272,2]
[348094246,1736308236144,-500.0,0.00010272,2]
[348094247,1736308236154,-500.0,0.00010272,2]
[348094248,1736308236163,-500.0,0.00010272,2]
[348094249,1736308236173,-500.0,0.00010272,2]
[348094250,1736308236182,-327.613219,0.00010272,2]
[348094251,1736308236192,-500.0,0.00010272,2]
[348094252,1736308236201,-1667.83,0.00010272,2]
[348094253,1736308236211,-482.98763976,0.00010272,2]
[348094254,1736308236220,-500.0,0.00010272,2]
[348094255,1736308236229,-500.0,0.00010272,2]
[348094256,1736308236239,-505.5,0.00010272,2]
[348094257,1736308236248,-500.0,0.00010272,2]
[348094258,1736308236258,-500.0,0.00010272,2]
[348094259,1736308236269,-500.0,0.00010272,2]
[348094260,1736308236284,-500.0,0.00010272,2]
[348094261,1736308236294,-500.0,0.00010272,2]
[348094262,1736308236303,-909.17,0.00010272,2]
[348094263,1736308236314,-500.0,0.00010272,2]
[348094264,1736308236324,-500.0,0.00010272,2]
[348094265,1736308236333,-500.0,0.00010272,2]
[348094266,1736308236343,-500.0,0.00010272,2]
[348094267,1736308236352,-500.0,0.00010272,2]
[348094268,1736308236362,-500.0,0.00010272,2]
[348094269,1736308236372,-500.0,0.00010272,2]
[348094270,1736308236382,-519.23,0.00010272,2]
[348094271,1736308236391,-821.81,0.00010272,2]
[348094272,1736308236401,-500.0,0.00010272,2]
[348094273,1736308236410,-500.0,0.00010272,2]
[348094274,1736308236421,-324.71735214,0.00010272,2]
[348094275,1736308236430,-500.0,0.00010272,2]
[348094276,1736308236440,-500.0,0.00010272,2]
[348094277,1736308236450,-1593.88,0.00010272,2]
[348094278,1736308236460,-527.07855569,0.00010272,2]
[348094279,1736308236470,-500.0,0.00010272,2]
[348094280,1736308236479,-500.0,0.00010272,2]
[348094281,1736308236490,-500.0,0.00010272,2]
[348094282,1736308236499,-500.0,0.00010272,2]
[348094283,1736308236508,-500.0,0.00010272,2]
[348094284,1736308236518,-500.0,0.00010272,2]
[348094285,1736308236529,-565.0,0.00010272,2]
[348094286,1736308236539,-500.0,0.00010272,2]
[348094287,1736308236548,-200.0,0.00010272,2]
[348094288,1736308236558,-823.69,0.00010272,2]
[348094289,1736308236568,-547.16,0.00010272,2]
[348094290,1736308236577,-500.0,0.00010272,2]
[348094291,1736308236586,-500.0,0.00010272,2]
[348094292,1736308236596,-1429.17,0.00010272,2]
[348094293,1736308236605,-500.0,0.00010272,2]
[348094294,1736308236614,-500.0,0.00010272,2]
[348094295,1736308236623,-500.0,0.00010272,2]
[348094296,1736308236633,-500.0,0.00010272,2]
[348094297,1736308236642,-500.0,0.00010272,2]
[348094298,1736308236651,-1004.11,0.00010272,2]
[348094299,1736308236660,-1138.04,0.00010272,2]
[348094300,1736308236670,-500.0,0.00010272,2]
[348094301,1736308236679,-906.51,0.00010272,2]
[348094302,1736308236688,-611.61,0.00010272,2]
[348094303,1736308236697,-1069.61,0.00010272,2]
[348094304,1736308236706,-210.21401931,0.00010272,2]
[348094305,1736308236715,-503.3486259,0.00010272,2]
[348094306,1736308236728,-500.0,0.00010272,2]
[348094307,1736308236738,-500.0,0.00010272,2]
[348094308,1736308236747,-500.0,0.00010272,2]
[348094309,1736308236756,-656.2,0.00010272,2]
[348094310,1736308236765,-233.574737,0.00010272,2]
[348094311,1736308236776,-964.98,0.00010272,2]
[348094312,1736308236786,-632.7,0.00010272,2]
[348094313,1736308236795,-500.0,0.00010272,2]
[348094314,1736308236804,-615.82,0.00010272,2]
[348094315,1736308236814,-500.0,0.00010272,2]
[348094316,1736308236824,-500.0,0.00010272,2]
[348094317,1736308236833,-500.0,0.00010272,2]
[348094318,1736308236843,-567.38,0.00010272,2]
[348094319,1736308236852,-500.0,0.00010272,2]
[348094320,1736308236862,-500.0,0.00010272,2]
[348094321,1736308236871,-500.0,0.00010272,2]
[348094322,1736308236880,-454.94706082,0.00010272,2]
[348094323,1736308236889,-500.0,0.00010272,2]
[348094324,1736308236899,-500.0,0.00010272,2]
[348094326,1736308236908,-500.0,0.00010272,2]
[348094327,1736308236917,-500.0,0.00010272,2]
[348094328,1736308236926,-50.09378682,0.00010272,2]
[348094329,1736308237864,-477.55621318,0.00010272,2]
[348094330,1736308237874,-500.0,0.00010272,2]
[348094331,1736308237884,-500.0,0.00010272,2]
[348094332,1736308237894,-500.0,0.00010272,2]
[348094333,1736308237903,-1021.26,0.00010272,2]
[348094334,1736308237913,-548.65,0.00010272,2]
[348094335,1736308237922,-500.0,0.00010272,2]
[348094336,1736308237931,-500.0,0.00010272,2]
[348094337,1736308237941,-500.0,0.00010272,2]
[348094339,1736308237950,-500.0,0.00010272,2]
[348094340,1736308237960,-1000.55,0.00010272,2]
[348094341,1736308237969,-500.0,0.00010272,2]
[348094342,1736308237979,-500.0,0.00010272,2]
[348094343,1736308238151,-903.56,0.00010272,2]
[348094344,1736308238190,-500.0,0.00010272,2]
[348094345,1736308238200,-500.0,0.00010272,2]
[348094346,1736308238210,-513.40680156,0.00010272,2]
[348094347,1736308238220,-500.0,0.00010272,2]
[348094348,1736308238230,-500.0,0.00010272,2]
[348094349,1736308238240,-564.67,0.00010272,2]
[348094350,1736308238250,-500.0,0.00010272,2]
[348094351,1736308238261,-500.0,0.00010272,2]
[348094352,1736308238273,-2620.77,0.00010272,2]
[348094353,1736308238284,-188.32,0.00010272,2]
[348094354,1736308238294,-690.20410075,0.00010273,2]
[348094355,1736308238303,-500.0,0.00010273,2]
[348094356,1736308238314,-500.0,0.00010273,2]
[348094357,1736308238324,-500.0,0.00010273,2]
[348094358,1736308238333,-500.0,0.00010273,2]
[348094360,1736308238344,-500.0,0.00010273,2]
[348094362,1736308238354,-500.0,0.00010273,2]
[348094364,1736308238363,-507.10058984,0.00010273,2]
[348094366,1736308238373,-604.24206201,0.00010273,2]
[348094368,1736308238382,-500.0,0.00010273,2]
[348094370,1736308238392,-500.0,0.00010273,2]
[348094372,1736308238403,-500.0,0.00010273,2]
[348094374,1736308238412,-500.0,0.00010273,2]
[348094376,1736308238422,-500.0,0.00010273,2]
[348094378,1736308238432,-500.0,0.00010273,2]
[348094380,1736308238441,-573.56383538,0.00010273,2]
[348094382,1736308238451,-1464.59,0.00010273,2]
[348094384,1736308238460,-500.0,0.00010273,2]
[348094386,1736308238469,-500.0,0.00010273,2]
[348094388,1736308238479,-500.0,0.00010273,2]
[348094390,1736308238489,-500.0,0.00010273,2]
[348094392,1736308238498,-500.0,0.00010273,2]
[348094394,1736308238507,-500.0,0.00010273,2]
[348094395,1736308238516,-500.0,0.00010273,2]
[348094397,1736308238527,-500.0,0.00010273,2]
[348094399,1736308238536,-500.0,0.00010273,2]
[348094401,1736308238546,-500.0,0.00010273,2]
[348094403,1736308238555,-500.0,0.00010273,2]
[348094405,1736308238564,-175.97796848,0.00010273,2]
[348094407,1736308238574,-500.0,0.00010273,2]
[348094408,1736308238584,-500.0,0.00010273,2]
[348094410,1736308238594,-500.0,0.00010273,2]
[348094412,1736308238603,-500.0,0.00010273,2]
[348094415,1736308238613,-500.0,0.00010273,2]
[348094416,1736308238622,-500.0,0.00010273,2]
[348094418,1736308238632,-500.0,0.00010273,2]
[348094420,1736308238641,-223.15243483,0.00010273,2]
[348094422,1736308238651,-500.0,0.00010273,2]
[348094424,1736308238660,-501.06861582,0.00010273,2]
[348094426,1736308238670,-500.0,0.00010273,2]
[348094428,1736308238680,-500.0,0.00010273,2]
[348094430,1736308238690,-500.0,0.00010273,2]
[348094432,1736308238699,-500.0,0.00010273,2]
[348094434,1736308238711,-500.0,0.00010273,2]
[348094436,1736308238722,-500.0,0.00010273,2]
[348094438,1736308238732,-500.0,0.00010273,2]
[348094440,1736308238744,-500.0,0.00010273,2]
[348094442,1736308238754,-503.19120319,0.00010273,2]
[348094444,1736308238763,-500.0,0.00010273,2]
[348094446,1736308238774,-500.0,0.00010273,2]
[348094448,1736308238785,-500.0,0.00010273,2]
[348094450,1736308238795,-500.0,0.00010273,2]
[348094452,1736308238804,-500.0,0.00010273,2]
[348094454,1736308238814,-500.0,0.00010273,2]
[348094456,1736308238823,-500.0,0.00010273,2]
[348094458,1736308238833,-500.0,0.00010273,2]
[348094460,1736308238842,-500.0,0.00010273,2]
[348094462,1736308238851,-503.63892729,0.00010273,2]
[348094464,1736308238861,-500.0,0.00010273,2]
[348094466,1736308238870,-508.27323068,0.00010273,2]
[348094468,1736308238880,-264.13,0.00010273,2]
[348094470,1736308238890,-500.0,0.00010273,2]
[348094472,1736308238900,-500.0,0.00010273,2]
[348094474,1736308238909,-500.0,0.00010273,2]
[348094476,1736308238919,-500.0,0.00010273,2]
[348094478,1736308238929,-500.0,0.00010273,2]
[348094480,1736308238939,-500.0,0.00010273,2]
[348094482,1736308238948,-500.0,0.00010273,2]
[348094484,1736308238957,-504.76302848,0.00010273,2]
[348094486,1736308238966,-512.66537213,0.00010273,2]
[348094488,1736308238975,-500.0,0.00010273,2]
[348094490,1736308238985,-500.0,0.00010273,2]
[348094492,1736308238995,-500.0,0.00010273,2]
[348094494,1736308239006,-500.0,0.00010273,2]
[348094495,1736308239015,-500.0,0.00010273,2]
[348094496,1736308239024,-500.0,0.00010273,2]
[348094497,1736308239035,-500.0,0.00010273,2]
[348094498,1736308239045,-500.0,0.00010273,2]
[348094499,1736308239055,-1020.94148517,0.00010314,2]
[348094500,1736308239064,-1852.42,0.00010349,2]